Cogmind - Beta 17 @@@ ROGUE MODE // 2026.07.25 @ 16:54:24 // Winter2019/RPGLIKE Player: Gallgagger Result: Self-destructed Performance ------------- Evolutions (1) 500 Regions Visited (3) 600 Robots Destroyed (3) 15 Value Destroyed (30) 30 Prototype IDs (1) 20 Alien Tech Used (0) 0 Bonus (0) 0 TOTAL SCORE: 1165 Bonus ------- None Cogmind --------- Core Integrity 514/600 Matter 270/300 Energy 100/100 System Corruption 0% Temperature Cool (0) Movement Flying (34) Location -9/Mines Parts ------- > --- POWER (1) -------- (None) > --- PROPULSION (3) --- Flight Unit Flight Unit Improved Flight Unit > --- UTILITY (1) ------ Structural Scanner > --- WEAPON (2) ------- EM Shotgun EM Shotgun > --- INVENTORY (0) ---- (None) Peak State ------------ > --- POWER ------------ (None) > --- PROPULSION ------- Flight Unit Flight Unit Improved Flight Unit > --- UTILITY ---------- Structural Scanner > --- WEAPON ----------- EM Shotgun EM Shotgun > --- INVENTORY -------- (None) [Rating: 10] Favorites ----------- Power None Propulsion Flight Unit Flight Unit Flight Unit Utility Structural Scanner Device Structural Scanner Weapon EM Shotgun Energy Gun EM Shotgun Energy Cannon Beam Cannon Build | -11 -10 -9 -9 ------- Run | Yrd Mat Mat Min Slots Evolved 3 | . 1 2 . Power . | . . . . Propulsion 2 | . 1 1 . Utility . | . . . . Weapon 1 | . . 1 . Parts Attached 7 | . 4 3 . Power . | . . . . Engine . | . . . . Core . | . . . . Reactor . | . . . . Propulsion 3 | . 2 1 . Treads . | . . . . Leg . | . . . . Wheel . | . . . . Hover . | . . . . Flight 3 | . 2 1 . Utility 1 | . 1 . . Device 1 | . 1 . . Storage . | . . . . Processor . | . . . . Hackware . | . . . . Protection . | . . . . Artifact . | . . . . Weapon 3 | . 1 2 . Energy Gun 2 | . . 2 . Energy Cannon 1 | . 1 . . Ballistic Gun . | . . . . Ballistic Cannon . | . . . . Launcher . | . . . . Special Weapon . | . . . . Impact Weapon . | . . . . Slashing Weapon . | . . . . Piercing Weapon . | . . . . Special Melee Weapon . | . . . . Unidentified Prototypes 1 | . . 1 . Parts Lost . | . . . . Power . | . . . . Propulsion . | . . . . Utility . | . . . . Weapon . | . . . . Highest Loss Streak . | . . . . To Critical Strikes . | . . . . Average Backups . | . . . . Power . | . . . . Propulsion . | . . . . Utility . | . . . . Weapon . | . . . . Tool/Special . | . . . . Unused Backups . | . . . . Power . | . . . . Propulsion . | . . . . Utility . | . . . . Weapon . | . . . . Tool/Special . | . . . . Average Slot Usage (%) 62 | . 41 82 85 Flight 23 | . 10 37 42 Device 17 | . 17 17 14 Energy Gun 9 | . . 18 28 Energy Cannon 10 | . 14 8 . Peak Build Rating 10 | . 4 10 10 Average Rating 3 | . 1 6 10 On Entrance 3 | . . 4 10 Avg Prop Armor Cover (%) . | . . . . Naked Turns 15 | . 15 . . Heaviest Build 7 | . 4 7 7 Greatest Support 18 | 3 13 18 18 Greatest Overweight (x) . | . . . . Average Overweight (x) . | . . . . Largest Inventory Capacity . | . . . . Average Capacity . | . . . . Most Carried . | . . . . Average Carried . | . . . . Final Capacity . | . . . . Final Carried . | . . . . Class Distribution -------------------- 100% | Mutant Dominant Class ---------------- Mutant | -10/Materials Mutant | -9/Materials Mutant | -9/Mines Resources | -11 -10 -9 -9 ----------- Run | Yrd Mat Mat Min Matter Collected 240 | 165 75 . . Remotely . | . . . . Salvage Created 38 | . 38 . . Parts 5 | . 5 . . Haulers Intercepted . | . . . . Recyclers Shooed . | . . . . Parts Field Recycled . | . . . . Retrieved Matter . | . . . . Parts Self-Destructed . | . . . . Prevented . | . . . . Parts Restored . | . . . . Kills | -11 -10 -9 -9 ------- Run | Yrd Mat Mat Min Combat Hostiles Destroyed 3 | . 3 . . Cannons 3 | . 3 . . Classes Destroyed 1 | . 1 . . Swarmer 3 | . 3 . . Best Kill Streak 3 | . 3 . . Combat Bots Only 3 | . 3 . . Max Kills in Single Turn 1 | . 1 . . Gunslinging . | . . . . Exploded . | . . . . Melee . | . . . . Uniques/NPCs Destroyed . | . . . . Combat | -11 -10 -9 -9 -------- Run | Yrd Mat Mat Min Hostile Shots Fired 21 | . 20 1 . Missed 6 | . 6 . . Hits 15 | . 14 1 . Projectile 15 | . 14 1 . Damage Taken 136 | . 118 18 . Core 122 | . 104 18 . Absorbed by Shields . | . . . . Redirected to Core 46 | . 46 . . Core Remaining (%) 94 | 100 88 . . Volleys Fired 8 | . 8 . . Largest 1 | . 1 . . Hottest 60 | . 60 . . Shots Fired 8 | . 8 . . Gun . | . . . . Cannon 8 | . 8 . . Launcher . | . . . . Special . | . . . . Kinetic . | . . . . Thermal 8 | . 8 . . Explosive . | . . . . Electromagnetic . | . . . . Robot Hit Streak 1 | . 1 . . Robot Miss Streak 2 | . 2 . . Penetration Max . | . . . . Secondary Targets . | . . . . Shots Hit Robots 4 | . 4 . . Core Hits 3 | . 3 . . Critical Kills . | . . . . Critical Parts Destroyed . | . . . . Critical Strikes . | . . . . Melee Attacks . | . . . . Impact . | . . . . Slashing . | . . . . Piercing . | . . . . Sneak Attacks . | . . . . Combat Hostiles . | . . . . Follow-up Attacks . | . . . . Damage Inflicted 72 | . 72 . . Guns . | . . . . Cannons 72 | . 72 . . Explosions . | . . . . Melee . | . . . . Ramming . | . . . . Kinetic . | . . . . Thermal 72 | . 72 . . Explosive . | . . . . Electromagnetic . | . . . . Impact . | . . . . Slashing . | . . . . Piercing . | . . . . Highest Corruption . | . . . . Average Corruption . | . . . . Corruption Purged . | . . . . Corruption Blocked . | . . . . Overload Shots . | . . . . Overflow Damage . | . . . . Projectiles . | . . . . Explosions . | . . . . Melee . | . . . . Knockbacks . | . . . . Impact . | . . . . Kinetic . | . . . . Secondary . | . . . . Self-Inflicted Damage . | . . . . Shots . | . . . . Rammed . | . . . . Targets Rammed . | . . . . Kicked . | . . . . Crushed . | . . . . Highest Temperature 80 | . 80 . . Average Temperature 40 | . 40 . . Received Heat Transfer 9 | . . 9 . Siege Activations . | . . . . Martial Activations . | . . . . Shielding Activations . | . . . . Robots Disrupted . | . . . . Combat Hostiles . | . . . . Robots Corrupted . | . . . . Combat Hostiles . | . . . . Parts Fried . | . . . . Impact Corruptions . | . . . . Robots Melted . | . . . . Combat Hostiles . | . . . . Parts Melted . | . . . . Heat Transferred 148 | . 148 . . Parts Sabotaged . | . . . . Parts Stolen . | . . . . Parts Stripped . | . . . . Power Chain Reactions . | . . . . Alert | -11 -10 -9 -9 ------- Run | Yrd Mat Mat Min Maximum Alert Level . | . . . . Low Security (%) 100 | 100 100 100 100 Level 1 . | . . . . Level 2 . | . . . . Level 3 . | . . . . Level 4 . | . . . . Level 5 . | . . . . High Security . | . . . . Max Security . | . . . . Peak Influence 60 | . 60 20 . Initial 20 | . . 20 . Average 13 | . 20 9 . Influence Increases 70 | . 70 . . Destroy 0b10 Robot/C 60 | . 60 . . Destroy Leader 10 | . 10 . . Influence Decreases 70 | . 20 50 . Entered New Map 30 | . . 30 . Time Decay 40 | . 20 20 . Squads Dispatched . | . . . . Investigation . | . . . . Extermination . | . . . . Reinforcement . | . . . . Assault . | . . . . Garrison . | . . . . Intercept . | . . . . Searches Triggered . | . . . . Construction Impeded . | . . . . Haulers Reinforced . | . . . . Active Scanning Responses . | . . . . Cargo Convoy Interrupts . | . . . . Stealth | -11 -10 -9 -9 --------- Run | Yrd Mat Mat Min Distress Signals 1 | . 1 . . Communications Jammed . | . . . . Distress Signals . | . . . . Times Spotted 10 | . 5 5 . Peak Tracking Total 6 | . 5 6 . Tactical Retreats . | . . . . Traps | -11 -10 -9 -9 ------- Run | Yrd Mat Mat Min Traps Triggered . | . . . . Indirectly . | . . . . Trap Hack Attempts . | . . . . Triggered . | . . . . Disarmed . | . . . . Reprogrammed . | . . . . Reused . | . . . . Traps Extracted . | . . . . Installed . | . . . . Triggered . | . . . . Machines | -11 -10 -9 -9 ---------- Run | Yrd Mat Mat Min Machines Disabled . | . . . . Max in Single Turn . | . . . . Machines Repaired . | . . . . Machines Dismantled . | . . . . Machines Sabotaged . | . . . . Overloaded Fab Kills . | . . . . Hacking | -11 -10 -9 -9 --------- Run | Yrd Mat Mat Min Machines Accessed 1 | . . 1 . Terminals 1 | . . 1 . Fabricators . | . . . . Repair Stations . | . . . . Recycling Units . | . . . . Scanalyzers . | . . . . Garrison Access . | . . . . Total Hacks 1 | . . 1 . Successful 1 | . . 1 . Failed . | . . . . Catastrophic . | . . . . Database Lockouts . | . . . . Manual 1 | . . 1 . Terminals 1 | . . 1 . Fabricators . | . . . . Repair Stations . | . . . . Recycling Units . | . . . . Scanalyzers . | . . . . Garrison Access . | . . . . Terminal Hacks 1 | . . 1 . Branch Access Points 1 | . . 1 . Fabricator Hacks . | . . . . Repair Station Hacks . | . . . . Recycling Unit Hacks . | . . . . Scanalyzer . | . . . . Garrison Access Hacks . | . . . . Unauthorized Hacks . | . . . . Terminals . | . . . . Fabricators . | . . . . Repair Stations . | . . . . Recycling Units . | . . . . Scanalyzers . | . . . . Garrison Access . | . . . . Data Cores Recovered . | . . . . Used . | . . . . Hacking Detections 1 | . . 1 . Full Trace Events . | . . . . Feedback Events . | . . . . Feedback Blocked . | . . . . Robot Schematics Acquired . | . . . . Robots Built . | . . . . Authchips . | . . . . Time . | . . . . Total Robot Build Rating . | . . . . Part Schematics Acquired . | . . . . Parts Built . | . . . . Authchips . | . . . . Time . | . . . . Total Part Build Rating . | . . . . Part Studies Acquired . | . . . . Parts Repaired . | . . . . Time . | . . . . Parts Recycled . | . . . . Recycled Matter . | . . . . Retrieved Matter . | . . . . Retrieved Components . | . . . . Parts Scanalyzed . | . . . . Part Schematics Acquired . | . . . . Parts Damaged . | . . . . Bothacking | -11 -10 -9 -9 ------------ Run | Yrd Mat Mat Min Used RIF Installer . | . . . . Robots Hacked . | . . . . Non-combat . | . . . . Combat . | . . . . Robot Hacks Applied . | . . . . Relay Couplers Released . | . . . . Fabnet Peak Effective % . | . . . . Robots Rewired . | . . . . Allies Hacked . | . . . . Hacks Repelled . | . . . . Allies | -11 -10 -9 -9 -------- Run | Yrd Mat Mat Min Total Allies . | . . . . Largest Group . | . . . . Highest-Rated Group . | . . . . Highest-Rated Ally . | . . . . Total Orders . | . . . . Ally Attacks . | . . . . Total Damage . | . . . . Kills . | . . . . Allies Corrupted . | . . . . Allies Melted . | . . . . Intel | -11 -10 -9 -9 ------- Run | Yrd Mat Mat Min Active Infowar (turns) 118 | . 53 62 3 Structural 118 | . 53 62 3 Robot Analysis Total . | . . . . Derelict Logs Recovered . | . . . . Drone Launches . | . . . . Drone Recoveries . | . . . . Exploration | -11 -10 -9 -9 ------------- Run | Yrd Mat Mat Min Turns Passed 145 | 12 68 62 3 Spaces Moved 279 | 23 93 157 6 Core 84 | 23 61 . . Treads . | . . . . Legs . | . . . . Wheels . | . . . . Hover . | . . . . Flight 195 | . 32 157 6 Fastest Speed 34 | 50 37 34 34 Average Speed 40 | 50 45 36 34 Slowest Speed 50 | 50 50 37 34 Overloaded Moves . | . . . . Propulsion Burnouts . | . . . . Robots Hopped 5 | . 2 3 . Potential Cave-ins . | . . . . Cave-ins Triggered . | . . . . Exploration Rate (%) 13 | 3 16 25 9 Regions Visited 3 Branch Regions 1 Pre-discovered Areas . | . . . . Known Exits Taken 1 | . . 1 . Unknown Exits Taken 2 | 1 1 . . Scrap Searched . | . . . . Spaces Dug . | . . . . Terrain Destroyed . | . . . . Melee . | . . . . Projectile . | . . . . AOE . | . . . . Terrain Rammed . | . . . . Walls Destroyed . | . . . . Machines Disabled . | . . . . Actions | -11 -10 -9 -9 --------- Run | Yrd Mat Mat Min Total 289 | 22 105 156 6 Wait 1 | . 1 . . Move 266 | 22 88 150 6 Hop 5 | . 2 3 . Pick Up . | . . . . Fast Attach 6 | . 4 2 . Attach . | . . . . Detach . | . . . . Swap 1 | . . 1 . Drop . | . . . . Fire 8 | . 8 . . Melee . | . . . . Ram . | . . . . Kick . | . . . . Crush . | . . . . Escape Stasis . | . . . . Rewire . | . . . . Trap . | . . . . Miscellaneous 2 | . 2 . . Route ------- -11/Scrapyard -10/Materials -9/Materials (discovered 3 exits: [*Mat] / *Min / Sto) -9/Mines History --------- Turn | Location | Event 5 | -11/Scrapyard | Discovered new exit (range 14) 13 | -11/Scrapyard | Entered Materials 66 | -10/Materials | Upgraded with Propulsion slot (x1) 79 | -10/Materials | Discovered new exit (range 4) 81 | -10/Materials | Entered another Materials area 83 | -9/Materials | Reached level 2 105 | -9/Materials | Upgraded with Weapon slot (x1) 111 | -9/Materials | Identified exit to Mines 111 | -9/Materials | Identified exit to Storage 116 | -9/Materials | Discovered new exit (range 16) 137 | -9/Materials | Upgraded with Propulsion slot (x1) 143 | -9/Materials | Entered Mines 146 | -9/Mines | Self-destructed Last Messages --------------- 00083_ Reached level 2. 00103_ Acquired EM Shotgun. 00105_ Upgraded: Weapon Slot (+1) 00105_ Acquired EM Shotgun. 00111_ Connecting with Terminal... 00111_ Current location identified: Materials >>Access(Branch) Found 2 branch access points: (84,12) Mines (21,50) Storage Map updated. [CShell_errno=`10`] 00112_ K-01 Serf collects debris. 00116_ EXIT=FOUND 00118_ K-01 Serf collects debris. 00137_ Upgraded: Propulsion Slot (+1) 00137_ Acquired Prototype Flight Unit. 00137_ Identified Imp. Flight Unit. LOCATION=MINES GOAL=ESCAPE Map ----- +----------------------------------------------------+ | ?????????????????????????????????????????????????? | | ?????????????????????????????????????????????????? | | ?????????????????????????????????????????????????? | | ?????????????????????????????????????????????????? | | ?????????????????????????????????????????????????? | | ?????????????????????????????????????????????????? | | ?????????????????????????????????????????????????? | | ?????????????????????????????????????????????????? | | ?????????????????????????????????????????????????? | | ?????????????????????????????????????????????????? | | ?????????????????????????????????????????????????? | | ?????????????????????????????????????????????????? | | ?????????????????????????????????????????????????? | | ?????????????????????? ??????????????????????????? | | ???????????????#####?? ??? ###???????????????????? | | ??????????????######## ?? ####??????????????????? | | ??????????????### #### ###??????????????????? | | ??????????????## ### ##??????????????????? | | ????????????????? """ ##??????????????????? | | ?????????????????? """ ##??????????????????? | | ??????????????????? """ ###?????????????????? | | ???????????????????## ###?????????????????? | | ???????????????????### ##?????????????????? | | ???????????????????### ##?????????????????? | | ?????????## ? ######## ###?????????????????? | | ?????????## ####### @ ###??????????????????? | | ?????????# ###???????????????????? | | ?????????? ###???????????????????? | | ?????????? #### ###???????????????????? | | ??????????????###### ###???????????????????? | | ?????????????????#### ##???????????????????? | | ??????????????????### ##???????????????????? | | ???????????????????## ###???????????????????? | | ???????????????????## ####???????????????????? | | ???????????????????### ####????????????????????? | | ???????????????????########??????????????????????? | | ????????????????????######???????????????????????? | | | | | | | | | | | | | | | | | | | | | | | | | | | +----------------------------------------------------+ Best States ------------- Heat Dissipation 25 Energy Generation 5 Energy Capacity 100 Matter Stores 300 Matter Capacity 300 Sight Range 16 Terrain Scan Density 10 Evasion (%) 63 Item Schematics ----------------- None Robot Schematics ------------------ None Fabricated ------------ Nothing Repaired ---------- Nothing Studied --------- None Alien Tech Used ----------------- None Achievements -------------- None Challenges ------------ None RPGLIKE | -11 -10 -9 -9 --------- Run | Yrd Mat Mat Min Levels Raised 1 | . . 1 . XP Earned 5350 | 3000 350 1500 500 XP Spent 1900 | . 600 1300 . Upgrades 4 | . 2 2 . Propulsion Slot 2 | . 1 1 . Weapon Slot 1 | . . 1 . Mass Support 1 | . 1 . . Protomatter Created 12 | . 12 . . Integrity Restored 36 | . 36 . . Core 36 | . 36 . . Protomatter Decayed . | . . . . Game ------ Seed ProjectionMissileClaymores Manual? 0 Play Time 00:01:21 Cumulative 689.2 hours Start 2026.07.25 @ 16:53:06 End 2026.07.25 @ 16:54:24 Sessions 1 Manual Loads 0 Difficulty Rogue Special Mode Winter2019/RPGLIKE Game No. 354 Rogue 200 Adventurer 154 Explorer 0 Win Type - Total 24 Types 4/6/5/3/2/1/0/1/1/1 Lore% 95 Gallery% 89 Achievement% 68 Wizard Run 0 Options --------- Layout 0 ASCII 0 Keyboard 0 Movement Numpad Keybinds 0 Fullscreen 2 Font 18/SmallcapsGlow Map View 76x50 Zoom Use 0% Tactical HUD 1 Map Filters NONE Filters NONE Steam 1 RUN: 8dc9a09b-595e-4b03-9b6f-654030013668